bitfinex-derivatives/quotes_SOLF0:USTF0_20251108
["timestamp","ask_amount","ask_price","bid_price","bid_amount"]
[1762570165331,8.3799,164.03,164.01,0.0386162]
[1762570165836,7.21569387,164.02,164.01,0.0386162]
[1762570166319,2.89,164.04,164.01,0.0386162]
[1762570166525,7.21556226,164.03,164.01,0.0386162]
[1762570166727,2.89,164.03,164.01,0.0386162]
[1762570168935,2.89,164.04,164.01,0.0386162]
[1762570169429,2.89,164.04,164.01,2.9186162]
[1762570169632,0.04022619,164.05,164.01,2.9186162]
[1762570170030,0.04022619,164.05,164.01,8.4088162]
[1762570170337,0.04022619,164.05,164.02,2.88]
[1762570170540,2.93022619,164.05,164.01,0.0386162]
[1762570171934,8.41942619,164.05,164.01,0.0386162]
[1762570172140,2.89,164.04,164.01,0.0386162]
[1762570175042,3.12,164.02,164.01,0.0386162]
[1762570175947,7.46080867,164.02,164.01,0.0386162]
[1762570176252,9.20573008,164.02,164.01,0.0386162]
[1762570176544,3.12,164.01,163.93,3.13]
[1762570176744,5.4909,164.0,163.95,5.4924]
[1762570176949,3.12,163.99,163.93,3.13]
[1762570177345,0.04469145,163.98,163.94,3.16898365]
[1762570177539,3.16469145,163.98,163.94,3.16898365]
[1762570177942,3.16469145,163.98,163.94,8.66168365]
[1762570178152,3.16469145,163.98,163.94,5.53168365]
[1762570178351,3.16469145,163.98,163.94,8.66168365]
[1762570179747,3.16469145,163.98,163.94,0.03898365]
[1762570180646,8.65619145,163.98,163.94,0.03898365]
[1762570180844,3.12,163.97,163.94,0.03898365]
[1762570183148,3.11,163.96,163.94,0.03898365]
[1762570184238,0.04469145,163.98,163.94,3.05898365]
[1762570185453,0.04469145,163.98,163.96,8.512]
[1762570190749,0.04469145,163.98,163.97,3.02]
[1762570196955,0.04469145,163.98,163.96,8.512]
[1762570197460,0.04469145,163.98,163.94,5.53168365]
[1762570197461,3.15469145,163.98,163.94,5.53168365]
[1762570197761,3.15469145,163.98,163.94,8.55168365]
[1762570198057,3.15469145,163.98,163.94,3.05898365]
[1762570200564,3.11,163.97,163.94,0.03898365]
[1762570201760,0.04469145,163.98,163.94,0.03898365]
[1762570201761,3.11,163.95,163.94,0.03898365]
[1762570202265,7.45159908,163.95,163.94,0.03898365]
[1762570202757,3.11,163.95,163.94,0.03898365]
[1762570203157,0.04469145,163.98,163.94,3.12898365]
[1762570203651,2.94469145,163.98,163.94,3.12898365]
[1762570203957,0.04469145,163.98,163.96,3.09]
[1762570205061,0.04469145,163.98,163.96,8.582]
[1762570205455,0.04469145,163.98,163.97,3.09]
[1762570208868,2.94469145,163.98,163.96,5.492]
[1762570209070,2.94469145,163.98,163.97,3.09]
[1762570209071,0.04469145,163.98,163.97,3.09]
[1762570213772,0.04469145,163.98,163.94,0.03898365]
[1762570213773,2.9,163.97,163.94,0.03898365]
[1762570214359,2.9,163.95,163.94,0.03898365]
[1762570214565,7.24484948,163.95,163.94,0.03898365]
[1762570215174,2.9,163.93,163.89,3.09]
[1762570215565,2.9,163.93,163.86,268.85573326]
[1762570215766,2.9,163.93,163.87,5.495]
[1762570216263,2.9,163.91,163.88,0.0419333]
[1762570217574,0.0432528,163.92,163.89,3.09]
[1762570219068,0.0432528,163.92,163.89,8.5843]
[1762570219468,0.0432528,163.92,163.9,3.09]
[1762570222977,2.9432528,163.92,163.89,5.4943]
[1762570223175,2.9432528,163.92,163.88,3.1319333]
[1762570224078,2.9,163.91,163.88,3.1319333]
[1762570224979,8.3939,163.91,163.88,3.1319333]
[1762570225768,0.0432528,163.92,163.88,3.1319333]
[1762570226978,0.0432528,163.92,163.9,8.584]
[1762570227878,0.0432528,163.92,163.9,3.09]
[1762570228279,0.0432528,163.92,163.89,3.09]
[1762570228473,2.9432528,163.92,163.89,3.09]
[1762570229486,2.9432528,163.92,163.88,0.0419333]
[1762570231078,8.394,163.91,163.88,0.0419333]
[1762570231591,2.9,163.9,163.88,0.0419333]
[1762570237290,8.3942,163.9,163.88,0.0419333]
[1762570237498,2.9,163.89,163.83,2.9]
[1762570238193,2.9,163.88,163.85,2.9]
[1762570238590,2.94197002,163.88,163.85,2.9393739]
[1762570239192,0.04197002,163.88,163.85,2.9393739]
[1762570241098,0.04197002,163.88,163.87,2.9]
[1762570242190,3.03197002,163.88,163.85,3.1293739]
[1762570242492,2.99,163.87,163.85,0.0393739]
[1762570245192,8.4853,163.87,163.85,0.0393739]
[1762570245395,2.99,163.86,163.79,3.09]
[1762570245589,2.99,163.86,163.81,8.5871]
[1762570246194,2.99,163.86,163.82,3.09]
[1762570246494,3.03216948,163.86,163.82,3.12927984]
[1762570246704,3.03216948,163.86,163.82,0.03927984]
[1762570246998,8.52776948,163.86,163.82,0.03927984]
[1762570247302,2.99,163.85,163.82,0.03927984]
[1762570250301,8.4859,163.85,163.82,0.03927984]
[1762570250600,2.99,163.84,163.82,0.03927984]
[1762570250991,8.4863,163.84,163.82,0.03927984]
[1762570251303,2.99,163.83,163.76,3.09]
[1762570252295,3.03372125,163.81,163.78,0.03867758]
[1762570253297,8.4876,163.8,163.78,0.03867758]
[1762570254306,2.99,163.79,163.78,0.03867758]
[1762570255400,2.99,163.79,163.68,13.73174737]
[1762570255401,2.99,163.77,163.73,3.09]
[1762570256397,3.03290499,163.77,163.73,3.13029684]
[1762570256598,2.99,163.76,163.73,3.13029684]
[1762570257900,2.99,163.76,163.73,0.04029684]
[1762570258404,2.99,163.74,163.73,0.04029684]
[1762570258709,2.99,163.74,163.69,3.09]
[1762570259610,0.04261229,163.73,163.7,3.13353379]
[1762570259807,3.03261229,163.73,163.7,3.13353379]
[1762570260016,3.03261229,163.73,163.7,0.04353379]
[1762570260710,2.99,163.71,163.67,2.66087145]
[1762570261808,2.99,163.71,163.67,2.70688381]
[1762570262005,2.99,163.71,163.67,0.04601236]
[1762570267608,3.05,163.69,163.67,0.04601236]
[1762570271012,8.5513,163.69,163.67,0.04601236]
[1762570271315,3.05,163.68,163.67,0.04601236]
[1762570272414,3.05,163.68,163.61,8.4637]
[1762570272415,4.80173713,163.68,163.61,8.4637]
[1762570272624,3.05,163.66,163.61,8.4637]
[1762570273616,29.3183,163.76,163.57,1.75173713]
[1762570273617,3.05,163.64,163.62,0.04190203]
[1762570273916,3.05,163.64,163.61,0.04402276]
[1762570274116,3.09124802,163.64,163.61,0.04402276]
[1762570274316,8.59414802,163.64,163.61,0.04402276]
[1762570274610,3.05,163.63,163.61,0.04402276]
[1762570275003,8.5533,163.63,163.61,0.04402276]
[1762570275206,3.05,163.62,163.61,0.04402276]
[1762570275615,3.05,163.61,163.56,2.96]
[1762570275915,3.05,163.61,163.53,2.96]
[1762570276321,3.05,163.58,163.5,2.96]
[1762570276613,3.05,163.58,163.4,11.0213]
[1762570276614,3.05,163.58,163.47,2.96]
[1762570276815,3.05,163.55,163.52,0.02528305]
[1762570277006,3.05,163.55,163.49,2.96]
[1762570277203,0.04396042,163.55,163.53,2.96]
[1762570278019,3.09396042,163.55,163.52,0.02528305]
[1762570279118,3.05,163.53,163.52,0.02528305]
[1762570279318,3.05,163.53,163.44,2.96]
[1762570280213,0.04131548,163.5,163.44,2.96]
[1762570280811,3.09131548,163.5,163.44,2.96]
[1762570281011,0.04131548,163.5,163.44,2.96]
[1762570281417,3.05,163.57,163.49,2.96]
[1762570282520,0.04646505,163.55,163.51,8.50831548]
[1762570282710,0.04646505,163.55,163.52,2.96]
[1762570283514,0.04646505,163.55,163.52,8.4667]
[1762570283711,0.04646505,163.55,163.53,2.96]
[1762570283917,0.04646505,163.55,163.52,2.96]
[1762570284513,3.05,163.53,163.51,0.04131548]
[1762570285102,3.05,163.53,163.44,2.96]
[1762570285304,3.05,163.52,163.44,2.96]
[1762570286216,0.04333741,163.5,163.44,2.96]
[1762570286917,0.04333741,163.5,163.44,8.4694]
[1762570287115,0.04333741,163.5,163.45,2.96]
[1762570287612,0.04333741,163.5,163.46,2.96]
[1762570288105,0.04333741,163.5,163.48,2.96]
[1762570288512,0.04333741,163.5,163.36,18.51202325]
[1762570288513,0.04333741,163.5,163.45,2.96]
[1762570288716,0.04473007,163.49,163.45,2.96]
[1762570290320,0.04473007,163.49,163.41,1.75173713]
[1762570290321,3.09473007,163.49,163.43,2.96]
[1762570290714,3.09473007,163.49,163.43,8.4698]
[1762570290914,3.09473007,163.49,163.43,2.96]
[1762570291611,3.05,163.47,163.43,2.96]
[1762570292411,3.05,163.47,163.4,3.0]
[1762570292617,3.05,163.47,163.39,1.75173713]
[1762570292618,2.99511966,163.45,163.32,413.0]
[1762570292814,0.04088128,163.4,163.39,3.0]
[1762570293010,0.04160912,163.41,163.39,3.0]
[1762570293211,2.95,163.52,163.38,1.75173713]
[1762570293414,2.95,163.52,163.42,1.75173713]
[1762570293815,2.95,163.52,163.43,3.0]
[1762570294214,0.04626176,163.49,163.46,0.03879531]
[1762570294416,0.04626176,163.49,163.46,3.03879531]
[1762570295018,0.04626176,163.49,163.46,8.54759531]
[1762570295217,0.04626176,163.49,163.47,3.0]
[1762570298717,0.04626176,163.49,163.46,5.54749531]
[1762570298718,0.04626176,163.49,163.46,0.03879531]
[1762570299124,0.04626176,163.49,163.46,3.03879531]
[1762570299321,2.99626176,163.49,163.46,0.03879531]
[1762570300021,2.95,163.48,163.46,0.03879531]
[1762570300625,2.99626176,163.49,163.46,0.03879531]
[1762570303817,2.92,163.48,163.46,0.03879531]
[1762570304013,0.04626176,163.49,163.46,2.98879531]
[1762570305932,0.04626176,163.49,163.46,8.49759531]
[1762570306132,0.04626176,163.49,163.47,2.95]
[1762570306818,0.04626176,163.49,163.48,2.95]
[1762570308127,2.96626176,163.49,163.46,0.03879531]
[1762570308631,2.92,163.47,163.46,0.03879531]
[1762570310132,0.04626176,163.49,163.46,2.98879531]
[1762570311537,0.04626176,163.49,163.46,8.49759531]
[1762570312235,0.04626176,163.49,163.47,2.95]
[1762570313528,0.04626176,163.49,163.46,2.98879531]
[1762570314436,2.96626176,163.49,163.46,2.98879531]
[1762570314824,0.04626176,163.49,163.46,2.98879531]
[1762570316933,0.04626176,163.49,163.47,5.5085]
[1762570317236,0.04626176,163.49,163.47,8.4585]
[1762570317733,0.04626176,163.49,163.48,2.95]
[1762570319435,3.98446433,163.57,163.51,2.95]
[1762570319436,2.92,163.57,163.51,2.95]
[1762570320227,8.4256,163.56,163.52,2.95]
[1762570320438,8.46702508,163.56,163.52,2.99224547]
[1762570320641,2.96142508,163.56,163.52,2.99224547]
[1762570320847,0.04142508,163.56,163.52,2.99224547]
[1762570321228,2.96142508,163.56,163.52,0.04224547]
[1762570321433,2.92,163.54,163.52,0.04224547]
[1762570322941,8.4263,163.54,163.52,0.04224547]
[1762570327742,3.11,163.53,163.52,0.04224547]
[1762570327940,4.48503183,163.55,163.52,0.04224547]
[1762570328143,3.15142508,163.56,163.52,2.95224547]
[1762570328341,0.04142508,163.56,163.52,2.95224547]
[1762570328544,3.15142508,163.56,163.52,2.95224547]
[1762570328744,3.15142508,163.56,163.53,2.91]
[1762570328939,0.04142508,163.56,163.53,2.91]
[1762570329542,0.04142508,163.56,163.54,2.91]
[1762570330044,0.04142508,163.56,163.55,2.91]
[1762570331949,3.11,163.66,163.58,2.91]
[1762570332948,0.04259705,163.64,163.6,0.04145941]
[1762570333150,3.15259705,163.64,163.61,2.91]
[1762570333347,3.15259705,163.64,163.6,2.95145941]
[1762570333642,3.11,163.63,163.6,0.04145941]
[1762570334448,3.11,163.63,163.6,2.95145941]
[1762570336155,0.04259705,163.64,163.6,2.95145941]
[1762570336355,3.15259705,163.64,163.6,2.95145941]
[1762570339348,3.11,163.63,163.6,0.04145941]
[1762570340056,8.6134,163.63,163.6,0.04145941]
[1762570340354,3.11,163.62,163.6,0.04145941]
[1762570340947,5.5039,163.61,163.6,0.04145941]
[1762570341148,3.11,163.6,163.54,8.4161]
[1762570341954,8.6145,163.6,163.54,8.4161]
[1762570342151,0.04688481,163.59,163.55,0.03910381]
[1762570342354,3.11,163.58,163.55,0.03910381]
[1762570342656,3.11,163.57,163.55,0.03910381]
[1762570343349,8.6154,163.57,163.55,0.03910381]
[1762570343555,3.11,163.56,163.55,0.03910381]
[1762570345153,3.11,163.58,163.55,0.03910381]
[1762570345455,3.11,163.58,163.55,2.94910381]
[1762570345651,0.04688481,163.59,163.55,2.94910381]
[1762570347552,3.15688481,163.59,163.55,2.94910381]
[1762570349958,8.66148481,163.59,163.55,2.94910381]
[1762570350548,0.04688481,163.59,163.55,2.94910381]
[1762570351348,0.04688481,163.59,163.56,2.91]
[1762570355352,2.95688481,163.59,163.55,2.91910381]
[1762570355664,0.04688481,163.59,163.55,2.91910381]
[1762570355864,2.95688481,163.59,163.55,2.91910381]
[1762570356066,2.95688481,163.59,163.55,0.03910381]
[1762570356268,2.95688481,163.59,163.55,2.91910381]
[1762570356959,5.505,163.58,163.55,2.91910381]
[1762570357464,8.415,163.58,163.55,2.91910381]
[1762570359269,2.91,163.56,163.55,0.03910381]
[1762570360464,2.91,163.54,163.48,2.88]
[1762570361672,0.04508955,163.53,163.5,2.84]
[1762570361859,0.04289117,163.53,163.5,2.88538357]
[1762570362056,0.04289117,163.53,163.52,8.3466]
[1762570364068,0.04289117,163.53,163.52,2.84]
[1762570368564,3.05,163.61,163.55,2.84]
[1762570369077,7.50659434,163.64,163.55,2.84]
[1762570369277,3.05,163.62,163.58,2.84]
[1762570369677,3.09215511,163.62,163.58,2.8856537]
[1762570371179,3.09215511,163.62,163.58,8.3903537]
[1762570371379,3.09215511,163.62,163.59,2.84]
[1762570371677,0.04215511,163.62,163.59,2.84]
[1762570371878,0.04215511,163.62,163.51,2.7444074]
[1762570372080,4.84245079,163.63,163.51,13.92372508]
[1762570372282,3.05,163.65,163.51,2.7444074]
[1762570372583,3.05,163.65,163.54,2.7444074]
[1762570372972,0.0432382,163.61,163.58,0.04143653]
[1762570373884,0.0432382,163.61,163.59,2.84]
[1762570374070,0.0432382,163.61,163.6,8.344]
[1762570374872,3.05,163.65,163.61,2.84]
[1762570375672,3.05,163.65,163.61,8.3437]
[1762570375978,3.09389149,163.65,163.61,8.38327171]
[1762570376881,3.09389149,163.65,163.61,2.87957171]
[1762570378784,3.09389149,163.65,163.61,0.03957171]
[1762570378785,3.05,163.64,163.61,0.03957171]
[1762570379285,3.05,163.62,163.55,2.84]
[1762570379886,3.05,163.59,163.55,2.84]
[1762570380187,3.09234273,163.59,163.55,2.84]
[1762570380381,3.09234273,163.59,163.55,2.88467212]
[1762570381490,3.05,163.56,163.55,0.04467212]
[1762570381787,3.05,163.56,163.51,2.84]
[1762570381994,3.05,163.53,163.48,2.84]
[1762570382591,3.12013688,163.52,163.49,0.03987944]
[1762570383584,3.08,163.5,163.49,0.03987944]
[1762570383987,3.08,163.5,163.42,2.86]
[1762570384196,3.08,163.49,163.42,8.37]
[1762570384789,3.08,163.49,163.43,8.3697]
[1762570384989,0.04441379,163.47,163.44,2.86]
[1762570387603,3.12441379,163.47,163.44,2.86]
[1762570389103,0.04441379,163.47,163.44,2.86]
[1762570390803,0.04441379,163.47,163.46,2.86]
[1762570391006,4.83486016,163.53,163.46,2.86]
[1762570391308,3.08,163.53,163.46,2.86]
[1762570392098,1.75486016,163.54,163.41,1.75486016]
[1762570392099,0.04589067,163.51,163.48,2.90100468]
[1762570393497,0.04589067,163.51,163.5,2.86]
[1762570394409,3.08,163.59,163.53,2.86]
[1762570394909,1.75486016,163.61,163.55,2.86]
[1762570395312,3.08,163.6,163.55,2.86]
[1762570395609,3.11931297,163.6,163.56,0.04387088]
[1762570395808,3.08,163.57,163.56,0.04387088]
[1762570396004,3.08,163.57,163.51,2.86]
[1762570396205,8.5854,163.57,163.51,2.86]
[1762570396706,3.08,163.57,163.51,2.86]
[1762570397006,3.08,163.57,163.37,85.7407]
[1762570397007,3.08,163.55,163.52,0.03947752]
[1762570397309,3.12406991,163.55,163.52,0.03976185]
[1762570398203,8.5867,163.53,163.52,0.03976185]
[1762570400610,3.08,163.5,163.46,2.86]
[1762570401506,3.08,163.5,163.47,2.86]
[1762570401710,3.11866501,163.5,163.46,8.3687]
[1762570402607,3.11866501,163.5,163.46,2.86]
[1762570403109,3.08,163.49,163.44,5.5094]
[1762570403413,3.08,163.49,163.43,2.86]
[1762570404600,3.08,163.49,163.43,8.3698]
[1762570404908,0.03866501,163.5,163.44,2.86]
[1762570405107,0.04663441,163.49,163.46,2.86]
[1762570405416,0.04510638,163.49,163.46,2.86]
[1762570406706,0.04510638,163.49,163.43,5.5099]
[1762570406707,3.12510638,163.49,163.43,5.5099]
[1762570406900,0.04673895,163.48,163.44,2.86]
[1762570407116,3.12673895,163.48,163.43,8.3699]
[1762570408505,3.12673895,163.48,163.43,2.86]
[1762570409703,3.12673895,163.48,163.39,2.86]
[1762570409903,0.04005273,163.45,163.39,2.86]
[1762570410107,3.12005273,163.45,163.39,2.86]
[1762570411213,3.08,163.44,163.39,2.86]
[1762570412109,3.08,163.44,163.29,18.08185136]
[1762570412110,3.08,163.44,163.4,2.86]
[1762570412413,0.04007224,163.44,163.4,2.86]
[1762570413117,2.90007224,163.44,163.4,2.86]
[1762570414513,0.04007224,163.44,163.4,2.86]
[1762570414713,0.04007224,163.44,163.42,2.9]
[1762570414903,2.90007224,163.44,163.41,5.5104]
[1762570415108,2.90007224,163.44,163.38,2.9]
[1762570415305,2.90007224,163.44,163.39,5.5112]
[1762570415512,2.90007224,163.44,163.4,2.9]
[1762570415717,2.90007224,163.44,163.37,2.9]
[1762570416217,2.90007224,163.44,163.37,8.4118]
[1762570417417,2.86,163.43,163.37,8.4118]
[1762570417613,2.86,163.43,163.37,2.9]
[1762570417821,8.3702,163.43,163.37,2.9]
[1762570419911,2.86,163.42,163.37,2.9]
[1762570420320,2.86,163.41,163.37,2.9]
[1762570420620,2.90639287,163.41,163.37,2.9]
[1762570424222,0.04639287,163.41,163.37,2.9]
[1762570424925,0.04639287,163.41,163.31,11.0277]
[1762570424926,0.04639287,163.41,163.39,3.13]
[1762570425223,3.13,163.48,163.41,8.6404]
[1762570425224,0.04305502,163.42,163.41,8.6404]
[1762570425421,0.0410891,163.43,163.42,3.13]
[1762570425621,0.04427485,163.44,163.42,3.13]
[1762570425925,0.04427485,163.44,163.43,3.13]
[1762570426828,0.04427485,163.44,163.41,3.13]
[1762570428027,3.13,163.4,163.36,3.13]
[1762570428225,3.17556446,163.4,163.36,3.13]
[1762570429631,8.68666446,163.4,163.36,3.13]
[1762570430019,3.17556446,163.4,163.36,3.13]
[1762570430420,5.5114,163.39,163.33,3.13]
[1762570430616,3.17556446,163.4,163.34,3.13]
[1762570430914,0.04048769,163.39,163.34,3.13]
[1762570431714,3.17048769,163.39,163.3,3.13]
[1762570431922,0.04399129,163.36,163.3,3.13]
[1762570432322,3.13,163.35,163.26,3.13]
[1762570432524,0.04060519,163.32,163.26,3.13]
[1762570434128,0.04060519,163.32,163.28,3.13]
[1762570434428,0.04149652,163.32,163.28,3.13]
[1762570435625,3.17149652,163.32,163.28,3.13]
[1762570437021,0.04149652,163.32,163.28,3.13]
[1762570437822,3.17149652,163.32,163.28,3.13]
[1762570438127,3.17149652,163.32,163.21,3.13]
[1762570438427,3.1696098,163.28,163.24,3.13]
[1762570438725,3.17692464,163.28,163.24,3.13]
[1762570438926,3.17692464,163.28,163.2,3.13]
[1762570439134,0.04439255,163.26,163.2,3.13]
[1762570439628,0.04439255,163.26,163.24,3.13]
[1762570439832,0.04374016,163.27,163.24,3.13]
[1762570440923,0.04374016,163.27,163.24,8.6462]
[1762570441120,0.04374016,163.27,163.24,3.13]
[1762570441439,0.04374016,163.27,163.24,8.6462]
[1762570441624,0.04374016,163.27,163.25,3.13]
[1762570442729,0.04374016,163.27,163.24,5.5162]
[1762570443333,2.98374016,163.27,163.23,2.91]
[1762570443636,2.98083736,163.27,163.23,2.91]
[1762570444131,0.04083736,163.27,163.23,8.4264]
[1762570444323,0.04083736,163.27,163.24,2.91]
[1762570444635,0.03928922,163.27,163.24,2.91]
[1762570444931,0.03928922,163.27,163.24,8.4261]
[1762570445131,0.03928922,163.27,163.25,2.91]
[1762570445333,0.03892132,163.28,163.25,2.91]
[1762570445823,2.97892132,163.28,163.25,2.91]
[1762570446423,0.03892132,163.28,163.25,2.91]
[1762570447028,0.03892132,163.28,163.25,8.4259]
[1762570447929,0.03892132,163.28,163.17,11.0374]
[1762570447930,0.03892132,163.28,163.27,2.91]
[1762570448122,0.04149425,163.29,163.27,2.91]
[1762570448326,5.68623215,163.4,163.28,2.91]
[1762570448327,2.94,163.4,163.28,2.91]
[1762570448842,2.94,163.4,163.31,2.91]
[1762570449437,0.04334265,163.37,163.34,2.95140642]
[1762570449741,0.0451773,163.37,163.34,2.95085308]
[1762570449935,0.0451773,163.37,163.36,2.91]
[1762570450335,0.0451773,163.37,163.34,0.04085308]
[1762570450532,0.0451773,163.37,163.34,2.95085308]
[1762570451229,0.0451773,163.37,163.36,2.91]
[1762570451928,78.36,163.43,163.4,8.4209]
[1762570452141,2.94,163.49,163.41,2.91]
[1762570452340,4.65856392,163.48,163.41,2.91]
[1762570453035,0.03855345,163.46,163.43,2.95580973]
[1762570453235,0.03986685,163.46,163.43,2.95103297]
[1762570453939,0.03986685,163.46,163.44,2.91]
[1762570454436,0.03986685,163.46,163.45,2.91]
[1762570456140,0.03986685,163.46,163.43,2.95103297]
[1762570459332,2.97986685,163.46,163.43,0.04103297]
[1762570462136,0.03986685,163.46,163.43,2.95103297]
[1762570462833,2.97986685,163.46,163.43,0.04103297]
[1762570463336,2.94,163.44,163.43,0.04103297]
[1762570467939,2.94,163.42,163.38,2.91]
[1762570468140,2.94,163.48,163.38,2.91]
[1762570469143,2.94,163.44,163.41,0.04456185]
[1762570469346,2.94,163.44,163.41,0.04358506]
[1762570470041,2.94,163.42,163.41,0.04358506]
[1762570470933,2.94,163.41,163.35,8.4224]
[1762570471248,2.94,163.41,163.35,2.91]
[1762570472046,2.94,163.39,163.35,2.91]
[1762570472941,0.0435525,163.4,163.35,2.91]
[1762570473535,0.0435525,163.4,163.37,3.01]
[1762570473741,0.03879043,163.4,163.37,3.01]
[1762570474230,0.03879043,163.4,163.38,3.01]
[1762570474642,0.03879043,163.4,163.3,3.01]
[1762570474833,0.04083628,163.37,163.36,3.01]
[1762570475038,0.03941674,163.38,163.36,3.01]
[1762570475440,0.03941674,163.38,163.37,3.01]
[1762570479947,3.13,163.46,163.4,3.01]
[1762570480349,4.64899245,163.51,163.37,8.5217]
[1762570480350,3.13,163.45,163.37,8.5217]
[1762570481039,3.13,163.42,163.39,0.0450206]
[1762570481242,3.1720572,163.42,163.39,0.04172386]
[1762570481638,3.1720572,163.42,163.39,3.08172386]
[1762570486551,0.0420572,163.42,163.39,8.59282386]
[1762570486857,0.0420572,163.42,163.4,3.04]
[1762570488249,0.0420572,163.42,163.39,0.04172386]
[1762570488250,2.9820572,163.42,163.39,0.04172386]
[1762570489545,2.94,163.4,163.39,0.04172386]
[1762570489745,2.94,163.4,163.33,3.04]
[1762570490156,2.94,163.39,163.33,3.04]
[1762570490358,2.94,163.39,163.24,3.04]
[1762570490854,0.04137747,163.33,163.29,3.04]
[1762570491956,0.04137747,163.33,163.3,3.04]
[1762570492755,0.04137747,163.33,163.3,8.5541]
[1762570492957,0.04137747,163.33,163.3,3.04]
[1762570495159,0.04137747,163.33,163.3,8.5542]
[1762570495360,0.04137747,163.33,163.31,3.04]
[1762570495563,0.04258274,163.34,163.31,3.04]
[1762570497559,2.98258274,163.34,163.31,3.04]
[1762570499064,2.98258274,163.34,163.3,5.5141]
[1762570499363,2.98258274,163.34,163.3,8.5541]
[1762570499557,2.98258274,163.34,163.27,3.04]
[1762570499765,2.98377538,163.32,163.27,3.04]
[1762570500359,2.98377538,163.32,163.29,3.04]
[1762570500360,0.04377538,163.32,163.29,3.04]
[1762570500864,0.04377538,163.32,163.29,8.5545]
[1762570501059,0.04377538,163.32,163.3,3.04]
[1762570501364,2.98377538,163.32,163.25,3.04]
[1762570501565,0.04151868,163.3,163.25,3.04]
[1762570502659,0.04151868,163.3,163.29,3.14]
[1762570504364,5.68008729,163.44,163.35,3.14]
[1762570504565,3.0,163.41,163.37,3.14]
[1762570505057,3.0,163.47,163.37,3.14]
[1762570505257,104.52281323,163.56,163.4,0.04268898]
[1762570505258,1.76081096,163.45,163.4,0.04268898]
[1762570505460,3.0,163.44,163.4,5.5108]
[1762570505663,3.04207375,163.44,163.41,0.03977582]
[1762570508361,0.04207375,163.44,163.41,3.17977582]
[1762570508862,0.04207375,163.44,163.43,3.14]
[1762570511962,0.04207375,163.44,163.41,3.17977582]
[1762570513077,3.04207375,163.44,163.41,0.03977582]
[1762570515673,0.04207375,163.44,163.41,3.17977582]
[1762570516859,0.04207375,163.44,163.42,5.51]
[1762570517066,3.04207375,163.44,163.41,0.03977582]
[1762570518166,0.04207375,163.44,163.42,3.14]
[1762570518376,0.04207375,163.44,163.41,0.03977582]
[1762570518567,0.04207375,163.44,163.41,3.17977582]
[1762570518765,3.04207375,163.44,163.41,0.03977582]
[1762570522673,3.04207375,163.44,163.41,3.17977582]
[1762570522873,0.04207375,163.44,163.41,3.17977582]
[1762570523980,0.04207375,163.44,163.43,3.14]
[1762570524480,3.0,163.51,163.45,5.5091]
[1762570524978,3.0,163.51,163.43,3.14]
[1762570525580,0.04283176,163.49,163.45,0.04158677]
[1762570525880,3.0,163.48,163.45,0.04158677]
[1762570531979,8.5084,163.48,163.45,0.04158677]
[1762570532278,3.02,163.47,163.45,0.04158677]
[1762570532781,3.02,163.47,163.4,3.14]
[1762570532782,5.5087,163.47,163.37,2.99]
[1762570533081,3.02,163.46,163.37,2.99]
[1762570533276,3.02,163.46,163.4,5.5108]
[1762570533981,3.02,163.44,163.41,0.04177559]
[1762570534883,3.02,163.44,163.41,3.03177559]
[1762570535182,3.06677173,163.45,163.41,3.03177559]
[1762570536977,0.04677173,163.45,163.42,2.99]
[1762570538081,0.04677173,163.45,163.43,2.99]
[1762570538573,0.04677173,163.45,163.43,5.5098]
[1762570538574,3.06677173,163.45,163.43,5.5098]
[1762570538781,0.04677173,163.45,163.43,5.5098]
[1762570538979,0.04677173,163.45,163.43,8.4998]